{"text_format":"3","workbook":"xlsx","n_sheets":1,"sheets":["Stroški zagona"],"not_rendered":{"defined_names":1},"read":"whole","date_system":"1900"}

{"sheet":"Stroški zagona","index":0,"n_rows":120,"n_cols":4,"rows_kept":120,"merged":[[1,1,1,3],[60,1,60,3],[82,1,82,3]]}
["STROŠKI ZAGONA",null,null,"IME PODJETJA, D.O.O."]
[null,"PRED UPORABO TEGA DELOVNEGA LISTA SI OGLEJTE TO OPOMBO\nSkoraj vsi, ki so kadar koli ustanovili svoje podjetje, so podcenjevali stroške in se nato soočili z nevarnostjo nezadostnih kapitalskih rezerv. Če se želite izogniti tej nevšečnosti, morate zagotoviti izjemno natančen pristop k raziskovanju in načrtovanju. Skozi ta postopek vas bo vodila naša predloga stroškov zagona.\n\nZAČNITE Z OCENITVIJO STROŠKOV\nKoliko vas bo stala ustanovitev podjetja?  Na tej stopnji je pomembno, da ste pozorni na podrobnosti. Za vse kategorije stroškov izdelajte seznam vseh elementov, ki jih boste morali kupiti. Ta naj vključuje tako opredmetena sredstva (npr. opremo inventar) kot tudi storitve (npr. prenova, zavarovanje). Nato določite, kje boste kupili blago oziroma storitve. Vaša raziskava naj bo podrobnejša od raziskave dobavitelja; npr. primerjava cen. Ne osredotočite se zgolj na ceno; prav tako so pomembni pogoji plačila, dobava, zanesljivost in storitve. "]
[]
[null,"STROŠKI ZAGONA"]
[null,"STAVBE/NEPREMIČNINE"," ","ZNESEK"]
[null,"Nabavna",null,{"v":0,"d":"0.00 €"}]
[null,"Gradbeništvo",null,{"v":0,"d":"0.00 €"}]
[null,"Prenova",null,{"v":0,"d":"0.00 €"}]
[null,"Drugo",null,{"v":0,"d":"0.00 €"}]
[null,"Vsota",null,{"$f":"SUBTOTAL(109,Nepremičnina[ZNESEK])","v":{"v":0,"d":"0.00 €"}}]
[]
[null,"IZBOLJŠAVE ZAKUPA"," ","ZNESEK"]
[null,"Element 1",null,{"v":0,"d":"0.00 €"}]
[null,"Element 2",null,{"v":0,"d":"0.00 €"}]
[null,"Element 3",null,{"v":0,"d":"0.00 €"}]
[null,"Element 4",null,{"v":0,"d":"0.00 €"}]
[null,"Vsota",null,{"$f":"SUBTOTAL(109,Izboljšave[ZNESEK])","v":{"v":0,"d":"0.00 €"}}]
[]
[null,"SEZNAM OSNOVNE OPREME"," ","ZNESEK"]
[null,"Pohištvo",null,{"v":0,"d":"0.00 €"}]
[null,"Oprema",null,{"v":0,"d":"0.00 €"}]
[null,"Električni priključki",null,{"v":0,"d":"0.00 €"}]
[null,"Stroji",null,{"v":0,"d":"0.00 €"}]
[null,"Drugo",null,{"v":0,"d":"0.00 €"}]
[null,"Vsota",null,{"$f":"SUBTOTAL(109,Kapital[ZNESEK])","v":{"v":0,"d":"0.00 €"}}]
[]
[null,"STROŠKI NASTANITVE IN ADMINISTRACIJE"," ","ZNESEK"]
[null,"Najemnina",null,{"v":0,"d":"0.00 €"}]
[null,"Pristojbine za javne službe",null,{"v":0,"d":"0.00 €"}]
[null,"Stroški za pravne in računovodske storitve",null,{"v":0,"d":"0.00 €"}]
[null,"Predplačilo zavarovanja",null,{"v":0,"d":"0.00 €"}]
[null,"Plače pred otvoritvijo ",null,{"v":0,"d":"0.00 €"}]
[null,"Drugo",null,{"v":0,"d":"0.00 €"}]
[null,"Vsota",null,{"$f":"SUBTOTAL(109,Stroški_skrbnika[ZNESEK])","v":{"v":0,"d":"0.00 €"}}]
[]
[null,"INVENTAR OTVORITVE"," ","ZNESEK"]
[null,"Kategorija 1",null,{"v":0,"d":"0.00 €"}]
[null,"Kategorija 2",null,{"v":0,"d":"0.00 €"}]
[null,"Kategorija 3",null,{"v":0,"d":"0.00 €"}]
[null,"Kategorija 4",null,{"v":0,"d":"0.00 €"}]
[null,"Kategorija 5",null,{"v":0,"d":"0.00 €"}]
[null,"Vsota",null,{"$f":"SUBTOTAL(109,Osnovna_oprema[ZNESEK])","v":{"v":0,"d":"0.00 €"}}]
[]
[null,"STROŠKI OGLAŠEVANJA IN PROMOCIJE"," ","ZNESEK"]
[null,"Oglaševanje",null,{"v":0,"d":"0.00 €"}]
[null,"Znaki",null,{"v":0,"d":"0.00 €"}]
[null,"Tiskano gradivo",null,{"v":0,"d":"0.00 €"}]
[null,"Potovanja/zabava",null,{"v":0,"d":"0.00 €"}]
[null,"Drugo/dodatne kategorije",null,{"v":0,"d":"0.00 €"}]
[null,"Vsota",null,{"$f":"SUBTOTAL(109,Stroški_promocije[ZNESEK])","v":{"v":0,"d":"0.00 €"}}]
[]
[null,"DRUGI STROŠKI"," ","ZNESEK"]
[null,"Drugi stroški 1",null,{"v":0,"d":"0.00 €"}]
[null,"Drugi stroški 2",null,{"v":0,"d":"0.00 €"}]
[null,"Vsota",null,{"$f":"SUBTOTAL(109,Drugi_stroški[ZNESEK])","v":{"v":0,"d":"0.00 €"}}]
[]
[null,"Rezerva za nepredvidene stroške",null,{"v":0,"d":"0.00 €"}]
[]
[null,"Kratkoročna sredstva ",null,{"v":0,"d":"0.00 €"}]
[]
[null,"DODAJTE REZERVO ZA NEPREDVIDENE STROŠKE\nV poslovnem načrtu opredelite, na kakšen način ste določili vsoto za to rezervo. \n\nDOLOČITE DENARNI TOK\nPodjetje ne more začeti poslovati s praznim bančnim računom. Ko začnete poslovati, potrebujete denarno rezervo, s katero boste pokrili nastale stroške. Sčasoma izdelajte 12-mesečno projekcijo denarnega toka. Tu boste ocenili potrebe po kratkoročnih sredstvih. Zaenkrat pustite to polje prazno ali pa vnesite približno oceno. Ko dokončno določite svoj denarni tok, se lahko vrnete in zabeležite natančno ocenjeni znesek.\n\nVNESITE VIRE KAPITALA\nKo določite višino kapitala, ki jo potrebujete za začetek, svojo pozornost namenite zgornjemu delu tega delovnega lista. Vnesite zneske, ki jih boste sami vložili v podjetje, zneske, ki jih bodo vložili partnerji in investitorji ter zneske, ki si jih boste izposodili."]
[]
[null,"VIRI KAPITALA"]
[null,"NALOŽBE LASTNIKOV  (IME IN % LASTNIŠTVA)"," ","ZNESEK"]
[null,"Vaše ime in odstotek lastništva",null,{"v":0,"d":"0.00 €"}]
[null,"Drugi investitorji",null,{"v":0,"d":"0.00 €"}]
[null,"Drugi investitorji",null,{"v":0,"d":"0.00 €"}]
[null,"Drugi investitorji",null,{"v":0,"d":"0.00 €"}]
[null,"Vsota",null,{"$f":"SUBTOTAL(109,Drugi_vlagatelji[ZNESEK])","v":{"v":0,"d":"0.00 €"}}]
[]
[null,"BANČNA POSOJILA"," ","ZNESEK"]
[null,"Banka 1",null,{"v":0,"d":"0.00 €"}]
[null,"Banka 2",null,{"v":0,"d":"0.00 €"}]
[null,"Banka 3",null,{"v":0,"d":"0.00 €"}]
[null,"Banka 4",null,{"v":0,"d":"0.00 €"}]
[null,"Vsota",null,{"$f":"SUBTOTAL(109,Bančna_posojila[ZNESEK])","v":{"v":0,"d":"0.00 €"}}]
[]
[null,"DRUGA POSOJILA"," ","ZNESEK"]
[null,"Vir 1",null,{"v":0,"d":"0.00 €"}]
[null,"Vir 2",null,{"v":0,"d":"0.00 €"}]
[null,"Vsota",null,{"$f":"SUBTOTAL(109,Druga_posojila[ZNESEK])","v":{"v":0,"d":"0.00 €"}}]
[]
[null,"DOLOČITE VRSTO ZAVAROVANJA S PREMOŽENJEM\nČe boste zahtevo za bančno posojilo podprli s tem načrtom, uporabite razdelek na dnu tega lista, kjer so navedena sredstva, ki služijo kot zavarovanje posojila – navedite tudi ocenjene vrednosti teh elementov. Bodite pripravljeni, da boste morali priložiti dokazila ocenjenih vrednosti zavarovanja s premoženjem."]
[]
[null,"POVZETEK POROČILA"]
[null,"VIR KAPITALA"," ","SKUPNI ZNESKI"]
[null,"Investicije lastnikov in druge investicije",null,{"$f":"Drugi_vlagatelji[[#Totals],[ZNESEK]]","v":{"v":0,"d":"0.00 €"}}]
[null,"Bančna posojila",null,{"$f":"Bančna_posojila[[#Totals],[ZNESEK]]","v":{"v":0,"d":"0.00 €"}}]
[null,"Druga posojila",null,{"$f":"Druga_posojila[[#Totals],[ZNESEK]]","v":{"v":0,"d":"0.00 €"}}]
[null,"Vsota",null,{"$f":"SUBTOTAL(109,Viri_kapitala[SKUPNI ZNESKI])","v":{"v":0,"d":"0.00 €"}}]
[]
[null,"STROŠKI ZAGONA"," ","SKUPNI ZNESKI"]
[null,"Stavbe/nepremičnine",null,{"$f":"Nepremičnina[[#Totals],[ZNESEK]]","v":{"v":0,"d":"0.00 €"}}]
[null,"Izboljšave zakupa",null,{"$f":"Izboljšave[[#Totals],[ZNESEK]]","v":{"v":0,"d":"0.00 €"}}]
[null,"Osnovna oprema",null,{"$f":"Kapital[[#Totals],[ZNESEK]]","v":{"v":0,"d":"0.00 €"}}]
[null,"Stroški nastanitve/administracije",null,{"$f":"Stroški_skrbnika[[#Totals],[ZNESEK]]","v":{"v":0,"d":"0.00 €"}}]
[null,"Inventar otvoritve",null,{"$f":"Osnovna_oprema[[#Totals],[ZNESEK]]","v":{"v":0,"d":"0.00 €"}}]
[null,"Stroški oglaševanja/promocije",null,{"$f":"Stroški_promocije[[#Totals],[ZNESEK]]","v":{"v":0,"d":"0.00 €"}}]
[null,"Drugih stroški",null,{"$f":"Drugi_stroški[[#Totals],[ZNESEK]]","v":{"v":0,"d":"0.00 €"}}]
[null,"Rezerva za nepredvidene stroške",null,{"$f":"SUM('Stroški zagona'!$C$57)","v":{"v":0,"d":"0.00 €"}}]
[null,"Kratkoročna sredstva",null,{"$f":"SUM('Stroški zagona'!$C$59)","v":{"v":0,"d":"0.00 €"}}]
[null,"Vsota",null,{"$f":"SUBTOTAL(109,Stroški_zagona[SKUPNI ZNESKI])","v":{"v":0,"d":"0.00 €"}}]
[]
[null,"ZAVAROVANJE IN ZAVAROVANJE S PREMOŽENJEM ZA POSOJILO"]
[null,"ZAVAROVANJE S PREMOŽENJEM ZA POSOJILA","OPIS","VREDNOST"]
[null,"Nepremičnina",null,{"v":0,"d":"0.00 €"}]
[null,"Druga sredstva za zavarovanje",null,{"v":0,"d":"0.00 €"}]
[null,"Druga sredstva za zavarovanje",null,{"v":0,"d":"0.00 €"}]
[null,"Druga sredstva za zavarovanje",null,{"v":0,"d":"0.00 €"}]
[null,"Vsota",null,{"$f":"SUBTOTAL(109,Zavarovanje[VREDNOST])","v":{"v":0,"d":"0.00 €"}}]
[]
[null,"LASTNIKI"," ","  "]
[null,"Tukaj vnesite svoje ime"]
[null,"Drugi lastnik"]
[null,"Drugi lastnik"]
[]
[null,"DRUGI POROKI (KI NISO LASTNIKI)"," ","  "]
[null,"Porok posojila 1"]
[null,"Porok posojila 2"]
[null,"Porok posojila 3"]